bitfinex-derivatives/quotes_BTCF0:USTF0_20250325
["timestamp","ask_amount","ask_price","bid_price","bid_amount"]
[1742910542486,0.1156015,87249.0,87248.0,0.62905928]
[1742910542877,0.1156015,87249.0,87248.0,0.51445728]
[1742910542878,0.3024015,87249.0,87248.0,0.51445728]
[1742910543072,0.6632015,87249.0,87248.0,0.51445728]
[1742910543279,0.8588015,87249.0,87248.0,0.51445728]
[1742910543984,0.1146125,87240.0,87239.0,0.00016]
[1742910544187,0.1146191,87235.0,87234.0,0.0006]
[1742910544393,0.1146191,87235.0,87234.0,0.20044]
[1742910544394,0.1158991,87235.0,87234.0,0.20044]
[1742910544593,0.1158991,87235.0,87234.0,0.00064]
[1742910544780,0.1146427,87217.0,87216.0,0.3002431]
[1742910544982,0.1146427,87217.0,87216.0,0.4821]
[1742910545178,0.47664271,87217.0,87216.0,0.2965]
[1742910545486,0.00120001,87217.0,87216.0,0.3252441]
[1742910545792,0.00120001,87217.0,87216.0,0.3111441]
[1742910545982,0.3608,87224.0,87216.0,0.3111441]
[1742910545983,0.3608,87224.0,87221.0,0.1146371]
[1742910546184,0.1146375,87222.0,87221.0,0.0006]
[1742910546386,0.11583751,87222.0,87221.0,0.0006]
[1742910546687,0.1146441,87216.0,87211.0,0.1146503]
[1742910546990,0.1146414,87220.0,87217.0,0.0573209]
[1742910547187,0.1146414,87218.0,87217.0,0.12]
[1742910547383,0.02685653,87218.0,87217.0,0.3452427]
[1742910547592,0.02685653,87218.0,87217.0,0.2358427]
[1742910547779,0.02428106,87219.0,87217.0,0.4852427]
[1742910547980,0.0573011,87248.0,87217.0,0.4852427]
[1742910547981,0.1835,87249.0,87217.0,0.4406]
[1742910548194,0.00084,87249.0,87248.0,0.114602]
[1742910548383,0.46326745,87267.0,87248.0,0.5914]
[1742910548582,0.1149933,87256.0,87255.0,0.1145928]
[1742910548778,0.00100001,87256.0,87255.0,0.2251928]
[1742910549191,0.47639151,87256.0,87255.0,0.0006]
[1742910549391,0.114602,87248.0,87247.0,0.00017192]
[1742910549583,0.00060001,87248.0,87247.0,0.11477522]
[1742910549893,0.0572996,87251.0,87247.0,0.10081192]
[1742910550085,0.475402,87248.0,87247.0,0.10017192]
[1742910550492,0.11520201,87248.0,87247.0,0.10081192]
[1742910550683,0.1145933,87255.0,87254.0,0.1145928]
[1742910550884,0.1145994,87251.0,87250.0,0.1145967]
[1742910551083,0.114602,87248.0,87247.0,0.00017192]
[1742910551288,0.1719141,87244.0,87243.0,0.1146076]
[1742910551488,0.1719141,87244.0,87243.0,0.03]
[1742910551683,0.5327141,87244.0,87243.0,0.03]
[1742910553987,0.5337141,87244.0,87243.0,0.03]
[1742910554186,0.5337141,87244.0,87229.0,0.06]
[1742910554187,0.114623,87232.0,87229.0,0.04]
[1742910554392,0.0573143,87228.0,87217.0,0.06]
[1742910554581,0.1719627,87218.0,87217.0,0.06]
[1742910554783,0.1719627,87218.0,87217.0,0.1746427]
[1742910554784,0.1923213,87218.0,87217.0,0.1746427]
[1742910555095,0.114636,87225.0,87224.0,0.1719436]
[1742910555398,0.114636,87225.0,87224.0,0.2319436]
[1742910555581,0.0573057,87241.0,87230.0,0.1146257]
[1742910555785,0.11479622,87231.0,87230.0,0.3552257]
[1742910556091,0.11539623,87231.0,87230.0,0.3552257]
[1742910556292,0.47619623,87231.0,87230.0,0.2406]
[1742910556989,0.47619623,87231.0,87230.0,0.241]
[1742910557293,0.84208675,87231.0,87230.0,0.241]
[1742910557486,0.1146427,87217.0,87216.0,0.21]
[1742910557794,0.26733972,87217.0,87216.0,0.0206]
[1742910557984,0.28327475,87217.0,87216.0,0.02]
[1742910558184,0.03171205,87217.0,87216.0,0.11]
[1742910558396,0.15352343,87217.0,87216.0,0.3252441]
[1742910558597,0.15352343,87217.0,87216.0,0.1152441]
[1742910558792,0.03888073,87217.0,87216.0,0.1152441]
[1742910558994,0.03888073,87217.0,87216.0,0.3152441]
[1742910558995,0.00716868,87217.0,87216.0,0.3152441]
[1742910559198,0.05748422,87231.0,87216.0,0.4714]
[1742910559494,0.00017192,87231.0,87230.0,0.1146257]
[1742910559792,0.12590018,87231.0,87230.0,0.4554657]
[1742910560000,0.01107588,87231.0,87230.0,0.6563657]
[1742910560192,0.12506018,87231.0,87230.0,0.5563657]
[1742910560498,0.10246745,87236.0,87235.0,0.1146191]
[1742910560800,0.114602,87249.0,87248.0,0.1718998]
[1742910561000,0.16990438,87251.0,87250.0,0.1145994]
[1742910561192,0.28450248,87251.0,87250.0,0.5653594]
[1742910561386,0.28374248,87251.0,87250.0,0.45076]
[1742910561688,0.28458248,87251.0,87250.0,0.5653594]
[1742910562100,0.16998438,87251.0,87250.0,0.5653594]
[1742910562292,0.28374248,87251.0,87250.0,0.9261594]
[1742910562493,0.28450248,87251.0,87250.0,0.9261594]
[1742910562700,0.28450248,87251.0,87250.0,0.75924475]
[1742910563197,0.28750248,87251.0,87250.0,0.75924475]
[1742910563784,0.17690438,87251.0,87250.0,0.39844475]
[1742910563986,0.17690438,87251.0,87250.0,0.59704475]
[1742910564295,0.29150248,87251.0,87250.0,0.48244535]
[1742910565100,0.1223581,87251.0,87250.0,0.48244535]
[1742910566101,0.1280903,87251.0,87250.0,0.28384535]
[1742910566488,0.19416,87251.0,87250.0,0.39844475]
[1742910566689,0.00776,87251.0,87250.0,0.39844475]
[1742910566892,0.1223581,87251.0,87250.0,0.79534475]
[1742910567090,0.1223581,87251.0,87250.0,0.68074535]
[1742910567496,0.1223581,87251.0,87250.0,0.79534475]
[1742910567696,0.5098581,87251.0,87250.0,0.79534475]
[1742910568199,0.00776,87251.0,87250.0,0.79534475]
[1742910568698,0.06348503,87251.0,87250.0,0.79534475]
[1742910568997,0.06356503,87251.0,87250.0,0.79534475]
[1742910569199,0.20160597,87255.0,87254.0,0.1145941]
[1742910569389,0.3608,87283.0,87271.0,0.1145718]
[1742910569390,0.3875,87278.0,87271.0,0.1145718]
[1742910569589,0.00100001,87272.0,87271.0,0.4654118]
[1742910569795,0.00100001,87272.0,87271.0,0.4554118]
[1742910569998,0.0004,87272.0,87271.0,0.8396118]
[1742910570191,0.1149705,87272.0,87271.0,0.63504]
[1742910570406,0.1157305,87272.0,87271.0,0.25084]
[1742910570603,0.2611705,87272.0,87271.0,0.26084]
[1742910570792,0.114581,87264.0,87263.0,0.00017192]
[1742910570997,0.476021,87264.0,87263.0,0.06017192]
[1742910571790,0.861221,87264.0,87263.0,0.06017192]
[1742910572601,0.861221,87264.0,87250.0,8e-05]
[1742910572602,0.1145981,87251.0,87250.0,8e-05]
[1742910572800,0.1152781,87251.0,87250.0,0.10008]
[1742910573007,0.12405851,87251.0,87250.0,0.6036994]
[1742910573593,0.12405851,87251.0,87250.0,0.4891]
[1742910574111,0.12405851,87251.0,87250.0,0.1006]
[1742910574300,0.12405851,87251.0,87250.0,0.1]
[1742910574500,0.12405851,87251.0,87250.0,0.1006]
[1742910574901,0.12404203,87251.0,87250.0,0.1006]
[1742910575208,0.0573026,87246.0,87219.0,0.0573199]
[1742910575399,0.0573079,87238.0,87226.0,0.1993]
[1742910575595,0.475423,87232.0,87231.0,0.00105855]
[1742910575790,0.476343,87232.0,87231.0,0.00053855]
[1742910575997,0.476343,87232.0,87231.0,0.00045855]
[1742910576291,0.864543,87232.0,87231.0,0.00045855]
[1742910576492,0.1146401,87219.0,87218.0,0.20493781]
[1742910576698,0.1146401,87219.0,87218.0,0.34557781]
[1742910577002,0.1155601,87219.0,87218.0,0.34557781]
[1742910577194,0.5037601,87219.0,87218.0,0.34557781]
[1742910577399,0.5037601,87219.0,87218.0,0.14064]
[1742910577601,0.5037601,87219.0,87218.0,0.14]
[1742910577903,0.1146441,87216.0,87208.0,0.20493781]
[1742910578106,0.1114841,87216.0,87208.0,0.20493781]
[1742910578305,0.1114841,87216.0,87215.0,0.43045863]
[1742910578500,0.1114841,87216.0,87215.0,0.43113863]
[1742910578697,0.1114841,87216.0,87215.0,0.00113863]
[1742910579000,0.1114841,87216.0,87215.0,0.11113863]
[1742910579206,0.1114841,87216.0,87215.0,0.22113863]
[1742910579410,0.1154841,87216.0,87215.0,0.22113863]
[1742910579711,0.1154841,87216.0,87215.0,0.29113863]
[1742910579901,0.00084,87216.0,87215.0,0.29578403]
[1742910580103,0.1154841,87216.0,87215.0,0.29113863]
[1742910580498,0.1154841,87216.0,87215.0,0.40578403]
[1742910581003,0.1154841,87216.0,87215.0,1.90978403]
[1742910581303,0.1146441,87216.0,87215.0,0.29513863]
[1742910581511,0.1154841,87216.0,87215.0,0.29513863]
[1742910581905,0.4839841,87216.0,87215.0,0.29513863]
[1742910584409,0.4839841,87216.0,87215.0,0.00513863]
[1742910584605,0.4839841,87216.0,87215.0,0.00445863]
[1742910584606,0.6280241,87216.0,87215.0,0.00445863]
[1742910586103,0.1146506,87211.0,87210.0,0.05]
[1742910586316,0.1146598,87204.0,87171.0,0.26228941]
[1742910586611,0.4754638,87201.0,87200.0,0.215]
[1742910586812,0.4763038,87201.0,87200.0,0.21568]
[1742910587015,0.6198638,87201.0,87200.0,0.41668]
[1742910587211,0.4763038,87201.0,87200.0,0.10568]
[1742910587405,0.4763038,87201.0,87200.0,0.406]
[1742910587605,0.4763038,87201.0,87200.0,0.4066]
[1742910587803,0.6777038,87201.0,87200.0,0.4066]
[1742910587998,0.6777038,87201.0,87200.0,0.4106]
[1742910588198,0.6777038,87201.0,87200.0,0.3106]
[1742910588410,0.1146861,87184.0,87183.0,0.0004588]
[1742910588605,0.1146861,87184.0,87183.0,0.2004588]
[1742910588606,0.1157661,87184.0,87183.0,0.2004588]
[1742910588802,0.1157661,87184.0,87183.0,0.2014988]
[1742910589198,0.1157661,87184.0,87183.0,0.3161862]
[1742910589406,0.1157661,87184.0,87183.0,0.3261862]
[1742910589607,0.1146861,87184.0,87183.0,0.3161862]
[1742910589912,0.1157661,87184.0,87183.0,0.1896988]
[1742910590807,0.3045661,87184.0,87183.0,0.1896988]
[1742910591005,0.5064661,87184.0,87183.0,0.3296988]
[1742910591412,0.5064661,87184.0,87183.0,0.1414988]
[1742910591615,0.5064661,87184.0,87183.0,0.1404588]
[1742910593718,0.6477061,87184.0,87183.0,0.1404588]
[1742910594011,0.4459661,87184.0,87183.0,0.1404588]
[1742910594211,0.3025661,87184.0,87183.0,0.1404588]
[1742910594419,0.4448061,87184.0,87183.0,0.1404588]
[1742910594618,0.3025661,87184.0,87183.0,0.1404588]
[1742910594812,0.4447261,87184.0,87183.0,0.1404588]
[1742910595212,0.00108,87184.0,87183.0,0.2551462]
[1742910595411,0.17218863,87192.0,87191.0,0.1146769]
[1742910595641,0.17286863,87192.0,87191.0,0.6052769]
[1742910595808,0.17286863,87192.0,87191.0,0.4906]
[1742910595809,0.17354863,87192.0,87191.0,0.4906]
[1742910596010,0.17286863,87192.0,87191.0,0.4906]
[1742910596206,0.37186863,87192.0,87191.0,0.4906]
[1742910596518,0.51454863,87192.0,87191.0,0.4906]
[1742910596917,0.31554863,87192.0,87191.0,0.4906]
[1742910597416,0.31554863,87192.0,87191.0,0.6052769]
[1742910597417,0.17286863,87192.0,87191.0,0.6052769]
[1742910597617,0.17286863,87192.0,87191.0,0.4906]
[1742910600011,0.55016863,87192.0,87191.0,0.4906]
[1742910600327,0.31458863,87192.0,87191.0,0.4906]
[1742910600729,0.50998863,87192.0,87191.0,0.4906]
[1742910601119,0.17286863,87192.0,87191.0,0.4906]
[1742910602022,0.17286863,87192.0,87191.0,0.4496666]
[1742910602228,0.55536863,87192.0,87191.0,0.4496666]
[1742910602612,0.55536863,87192.0,87191.0,0.3457135]
[1742910602817,0.5734303,87185.0,87168.0,8e-05]
[1742910603017,0.3608,87179.0,87168.0,0.19]
[1742910603216,0.3608,87179.0,87178.0,0.114694]
[1742910603217,0.4764147,87179.0,87178.0,0.114694]
[1742910603418,0.4764147,87179.0,87178.0,0.2106]
[1742910603623,0.4764147,87179.0,87178.0,0.325294]
[1742910604018,0.00092,87179.0,87178.0,0.325294]
[1742910604219,0.3608,87196.0,87191.0,0.1146769]
[1742910604416,0.00105204,87192.0,87191.0,0.4646769]
[1742910604622,0.11612764,87192.0,87191.0,0.4652769]
[1742910604930,0.11612764,87192.0,87191.0,0.729]
[1742910605232,0.11612764,87192.0,87191.0,0.629]
[1742910605430,0.66862764,87192.0,87191.0,0.4441]
[1742910605627,0.66862764,87192.0,87191.0,0.2506]
[1742910605628,1.01440764,87192.0,87191.0,0.2506]
[1742910605830,1.09503204,87192.0,87171.0,8e-05]
[1742910606028,0.1147006,87173.0,87172.0,0.1849]
[1742910606227,0.11558061,87173.0,87172.0,0.2955]
[1742910606426,0.11558061,87173.0,87172.0,0.4002819]
[1742910606627,0.11558061,87173.0,87172.0,0.6802819]
[1742910606628,0.00088001,87173.0,87172.0,0.6802819]
[1742910606823,0.00057203,87192.0,87186.0,0.1146822]
[1742910607132,0.1720121,87195.0,87194.0,0.1146688]
[1742910607331,0.1154341,87195.0,87194.0,1.6146688]
[1742910607632,0.3608,87203.0,87200.0,0.1146639]
[1742910607633,0.1146651,87201.0,87200.0,0.1146639]
[1742910607932,0.172713,87203.0,87202.0,0.1146625]
[1742910608127,0.00144,87203.0,87202.0,0.5861825]
[1742910608327,0.00144,87203.0,87202.0,0.6761825]
[1742910608328,0.00072,87203.0,87202.0,0.6761825]
[1742910608531,0.17096205,87205.0,87204.0,0.1146598]
[1742910608733,0.00017203,87211.0,87210.0,0.1146519]
[1742910609027,0.11482263,87211.0,87210.0,0.60152]
[1742910609234,0.30432264,87211.0,87210.0,1.50072]
[1742910609422,0.49394263,87211.0,87210.0,1.50072]
[1742910609624,0.49394263,87211.0,87210.0,1.61072]
[1742910609827,0.30444263,87211.0,87210.0,1.61072]
[1742910610229,0.30444263,87211.0,87210.0,0.2253719]
[1742910610438,0.11554263,87211.0,87210.0,0.5861719]
[1742910610625,0.11554263,87211.0,87210.0,2.0861719]
[1742910610824,0.00017203,87211.0,87210.0,2.3743719]
[1742910611535,0.11482263,87211.0,87210.0,2.3743719]
[1742910611832,0.11482263,87211.0,87210.0,2.25972]
[1742910612033,0.11682263,87211.0,87210.0,0.75972]
[1742910612229,0.11754263,87211.0,87210.0,0.21072]
[1742910612529,0.11654263,87211.0,87210.0,0.21]
[1742910612732,0.48874263,87211.0,87210.0,0.21]
[1742910612921,0.48874263,87211.0,87210.0,0.21072]
[1742910613124,0.48874263,87211.0,87210.0,0.21]
[1742910613334,0.30294263,87211.0,87210.0,0.21]
[1742910613539,0.00089203,87211.0,87210.0,0.3246519]
[1742910613727,0.00017203,87211.0,87210.0,0.3254519]
[1742910613928,0.20409159,87218.0,87217.0,0.1146427]
[1742910614233,0.20481159,87218.0,87217.0,0.4753627]
[1742910614623,0.1153614,87218.0,87217.0,0.4753627]
[1742910615019,0.00072,87218.0,87217.0,0.4753627]
[1742910615226,0.00272,87218.0,87217.0,0.4753627]
[1742910615425,0.1182886,87218.0,87217.0,0.3753627]
[1742910615628,0.1162886,87218.0,87217.0,0.26072]
[1742910616234,0.3174886,87218.0,87217.0,0.26]
[1742910616433,0.1146598,87204.0,87203.0,0.35]
[1742910616624,0.3951598,87204.0,87203.0,0.18076]
[1742910616936,0.3951598,87204.0,87199.0,0.00045872]
[1742910616937,0.1146651,87200.0,87199.0,0.00045872]
[1742910617130,0.1153051,87200.0,87199.0,0.00045872]
[1742910617323,0.1146717,87195.0,87194.0,0.00017203]
[1742910617639,0.47607171,87195.0,87194.0,0.00017203]
[1742910618938,0.61357171,87195.0,87194.0,3e-08]
[1742910619129,0.1146861,87184.0,87183.0,0.0004588]
[1742910619436,0.1147032,87171.0,87170.0,0.1852]
[1742910619629,0.12422793,87171.0,87170.0,0.21596]
[1742910620027,0.12422793,87171.0,87170.0,0.3306645]
[1742910620332,0.12422793,87171.0,87170.0,0.21596]
[1742910620333,0.50352793,87171.0,87170.0,0.21596]
[1742910621538,0.50452793,87171.0,87170.0,0.21596]
[1742910621726,0.50452793,87171.0,87170.0,0.1454645]
[1742910622137,0.50452793,87171.0,87170.0,0.03076]
[1742910622437,0.31822793,87171.0,87170.0,0.03076]
[1742910623225,0.31822793,87171.0,87170.0,0.03]
[1742910623737,0.31822793,87171.0,87167.0,0.00045889]
[1742910623738,0.1147072,87168.0,87167.0,0.00045889]
[1742910624039,0.11530721,87168.0,87167.0,0.15045889]
[1742910624237,0.12407194,87168.0,87167.0,0.15121889]
[1742910624442,0.1147282,87152.0,87151.0,0.00045897]
[1742910624644,0.1147282,87152.0,87139.0,0.56573781]
[1742910624645,0.114744,87140.0,87139.0,0.56573781]
[1742910624836,0.115544,87140.0,87139.0,0.70649781]
[1742910625142,0.115544,87140.0,87139.0,0.98996]
[1742910625143,0.12367651,87140.0,87139.0,0.98996]
[1742910625331,0.1472711,87140.0,87139.0,0.98996]
[1742910625661,0.1480311,87140.0,87139.0,0.98996]
[1742910625939,0.3360311,87140.0,87139.0,0.98996]
[1742910626542,0.3360311,87140.0,87139.0,0.58156]
[1742910627039,0.81546873,87140.0,87139.0,0.22076]
[1742910627249,0.1147493,87136.0,87135.0,0.00053906]
[1742910627539,0.13529583,87136.0,87135.0,0.02819226]
[1742910627738,0.13593583,87136.0,87135.0,0.02819226]
[1742910628142,0.1147572,87130.0,87129.0,0.23120169]
[1742910628340,0.4763972,87130.0,87129.0,0.25200169]
[1742910628542,0.49687801,87130.0,87129.0,0.25200169]
[1742910628744,0.49687797,87130.0,87129.0,0.25200169]
[1742910629047,0.1147743,87117.0,87116.0,0.36438849]
[1742910629243,0.1147743,87117.0,87101.0,0.3608]
[1742910629244,0.0573937,87107.0,87103.0,0.00218114]
[1742910629442,0.1147915,87104.0,87103.0,0.00105922]
[1742910629636,0.1147915,87104.0,87094.0,0.7486]
[1742910629637,0.1148033,87095.0,87094.0,0.5506]
[1742910629843,0.11604331,87095.0,87094.0,0.65184]
[1742910630044,0.11604331,87095.0,87094.0,0.00124]
[1742910630247,0.1148126,87088.0,87085.0,0.3608]
[1742910630440,0.1148126,87088.0,87087.0,0.00105931]
[1742910630749,0.11605261,87088.0,87087.0,0.11105931]
[1742910630932,0.01000474,87088.0,87087.0,0.32587321]
[1742910631435,0.00876473,87088.0,87087.0,0.32587321]
[1742910631631,0.1375,87100.0,87090.0,0.0574045]
[1742910631845,0.0574005,87097.0,87093.0,0.1148053]
[1742910632041,0.1885,87106.0,87093.0,0.1148053]
[1742910632042,0.1151811,87112.0,87094.0,1.8805]
[1742910632346,0.00124001,87107.0,87106.0,0.1147888]
[1742910632552,0.0004,87112.0,87107.0,0.1147866]
[1742910632743,0.1147862,87108.0,87107.0,0.2106]
[1742910632935,0.11602621,87108.0,87107.0,0.0006]
[1742910633443,0.11602621,87108.0,87094.0,1.5]
[1742910633444,0.1147967,87100.0,87099.0,0.00025224]
[1742910633637,0.0004,87112.0,87099.0,0.22089224]
[1742910633839,0.1375,87137.0,87116.0,0.0573874]
[1742910634042,0.114754,87133.0,87127.0,0.4755612]
[1742910634251,0.1151598,87128.0,87127.0,0.36144]
[1742910634436,0.11603981,87128.0,87127.0,0.00064]
[1742910634634,0.1147796,87113.0,87112.0,0.1983]
[1742910634838,0.1147796,87113.0,87112.0,0.3289]
[1742910635048,0.1147796,87113.0,87112.0,0.1989]
[1742910635350,0.0004,87128.0,87112.0,0.3889]
[1742910635650,0.3776,87143.0,87132.0,0.1147546]
[1742910635844,0.32044039,87133.0,87132.0,0.7962346]
[1742910636151,0.2056071,87133.0,87132.0,0.7962346]
[1742910636347,0.31976039,87133.0,87132.0,0.7962346]
[1742910636649,0.2056071,87133.0,87132.0,0.7962346]
[1742910636850,0.20500709,87133.0,87132.0,0.7962346]
[1742910637237,0.31976039,87133.0,87132.0,0.68148]
[1742910637438,0.32044039,87133.0,87132.0,0.68148]
[1742910638352,0.71994039,87133.0,87132.0,0.68148]
[1742910638538,0.60518709,87133.0,87132.0,0.7962346]
[1742910638738,0.32244039,87133.0,87132.0,0.68148]
[1742910638940,0.32244039,87133.0,87132.0,0.87728]
[1742910639342,0.32044039,87133.0,87132.0,0.87728]
[1742910639547,0.1194333,87133.0,87132.0,0.87728]
[1742910639743,0.1194333,87133.0,87132.0,0.9920346]
[1742910639938,0.004,87133.0,87132.0,0.9920346]
[1742910640146,0.0004,87144.0,87140.0,0.114744]
[1742910640352,0.0004,87144.0,87143.0,0.1147401]
[1742910640547,0.0004,87144.0,87143.0,0.5953801]
[1742910640853,0.1375,87167.0,87143.0,0.5953801]
[1742910640854,0.0573549,87166.0,87159.0,0.114719]
[1742910641047,0.1157577,87160.0,87159.0,0.2206]
[1742910641241,0.1157577,87160.0,87159.0,0.41774]
[1742910641747,0.1157577,87160.0,87159.0,0.532459]
[1742910641945,0.1157577,87160.0,87159.0,0.41774]
[1742910643150,0.1157577,87160.0,87159.0,0.22064]
[1742910643541,0.5224577,87160.0,87159.0,0.22064]
[1742910643851,0.5224577,87160.0,87159.0,0.522559]
[1742910643852,0.00104,87160.0,87159.0,0.522559]
[1742910644151,0.1151177,87160.0,87159.0,0.40784]
[1742910644550,0.1004,87160.0,87159.0,0.522559]
[1742910645143,0.2151177,87160.0,87159.0,0.522559]
[1742910645452,0.2151177,87160.0,87159.0,0.40784]
[1742910645649,0.21671771,87160.0,87159.0,0.40784]
[1742910646152,0.60491771,87160.0,87159.0,0.40784]
[1742910646550,0.60391771,87160.0,87159.0,0.40784]
[1742910646947,0.60491771,87160.0,87159.0,0.40784]
[1742910647344,0.60491771,87160.0,87159.0,0.22064]
[1742910647345,0.96671771,87160.0,87159.0,0.22064]
[1742910647641,0.10300001,87160.0,87159.0,0.22]
[1742910647848,0.1147112,87165.0,87164.0,0.1147124]
[1742910648051,0.00017214,87168.0,87165.0,0.0573553]
[1742910648052,0.17223564,87168.0,87165.0,0.0573553]
[1742910648255,0.00017214,87168.0,87167.0,0.1147085]
[1742910648439,0.20500709,87177.0,87175.0,0.114698]
[1742910648640,0.23856183,87189.0,87185.0,0.114681]
[1742910648842,0.23856183,87189.0,87188.0,0.1146809]
[1742910649048,0.23856183,87189.0,87188.0,0.4546809]
[1742910649364,0.35324143,87189.0,87188.0,0.4317]
[1742910649558,0.35324143,87189.0,87188.0,0.6463809]
[1742910649758,0.23856183,87189.0,87188.0,0.5463809]
[1742910649958,0.1146796,87189.0,87188.0,0.4317]
[1742910650151,0.1246796,87189.0,87188.0,0.2017]
[1742910650352,0.01,87189.0,87188.0,0.11]
[1742910650549,0.01,87189.0,87188.0,0.3246809]
[1742910650860,0.01,87189.0,87188.0,0.4446809]
[1742910651059,0.01,87189.0,87188.0,0.3246809]
[1742910651244,0.1,87200.0,87191.0,0.1146769]
[1742910651446,0.1146746,87193.0,87191.0,0.4646769]
[1742910651651,0.1150756,87192.0,87191.0,0.3546769]
[1742910651949,0.1150756,87192.0,87187.0,0.7532]
[1742910651950,0.1146809,87188.0,87187.0,0.2017]
[1742910652144,0.1146809,87188.0,87187.0,0.19]
[1742910652444,0.0004,87192.0,87191.0,0.1146769]
[1742910652645,0.0004,87192.0,87191.0,0.3646769]
[1742910652849,0.1150756,87192.0,87191.0,0.2746769]
[1742910653062,0.1150756,87192.0,87191.0,0.16]
[1742910653450,0.1150756,87192.0,87191.0,0.25]
[1742910653754,0.4883956,87192.0,87191.0,0.25072]
[1742910654059,0.4883956,87192.0,87191.0,0.16172]
[1742910654257,0.4883956,87192.0,87184.0,8e-05]
[1742910654258,0.1146848,87185.0,87184.0,8e-05]
[1742910654566,0.00068,87185.0,87184.0,0.13]
[1742910654861,0.373,87192.0,87191.0,0.1146769]
[1742910654862,0.0004,87192.0,87191.0,0.1146769]
[1742910655047,0.00104,87192.0,87191.0,0.3752769]
[1742910655247,0.00104,87192.0,87191.0,0.7360769]
[1742910655444,0.23873397,87197.0,87196.0,0.1146703]
[1742910655674,0.23941397,87197.0,87196.0,0.4953103]
[1742910655856,0.23945397,87197.0,87196.0,0.4953103]
[1742910656051,0.11556114,87197.0,87196.0,0.38064]
[1742910656760,0.00089214,87197.0,87196.0,0.4953103]
[1742910656956,0.00117214,87197.0,87196.0,0.6862103]
[1742910657148,0.00217214,87197.0,87196.0,0.6862103]
[1742910657552,0.00117214,87197.0,87196.0,0.8854103]
[1742910657849,0.0004,87208.0,87207.0,0.1146559]
[1742910658055,0.1156946,87208.0,87207.0,0.7414]
[1742910658251,0.1150546,87208.0,87207.0,0.7414]
[1742910658555,0.0004,87208.0,87207.0,0.8560559]
[1742910658949,0.1150546,87208.0,87207.0,0.8560559]
[1742910659147,0.0004,87208.0,87207.0,0.8560559]
[1742910659357,0.00011225,87216.0,87215.0,0.1146454]
[1742910659551,0.3783,87230.0,87215.0,0.7214]
[1742910659756,0.1146441,87216.0,87215.0,0.3606]
[1742910660061,0.1152841,87216.0,87215.0,0.3606]
[1742910660461,0.4760841,87216.0,87215.0,0.3606]
[1742910660758,0.6961841,87216.0,87215.0,0.3606]
[1742910660957,0.58154,87216.0,87215.0,0.3606]
[1742910661161,0.00564,87216.0,87215.0,0.4752454]
[1742910661351,0.005,87216.0,87215.0,0.4752454]
[1742910662660,0.01,87216.0,87215.0,0.4752454]
[1742910663050,0.1146326,87225.0,87223.0,0.1146349]
[1742910663362,0.1157535,87224.0,87223.0,0.1606]
[1742910663555,0.4919735,87224.0,87223.0,0.1606]
[1742910663858,0.1146414,87218.0,87217.0,8e-05]
[1742910664047,0.1146519,87210.0,87209.0,0.00068]
[1742910664250,0.1152919,87210.0,87209.0,0.02128]
[1742910664455,0.1152919,87210.0,87209.0,0.0206]
[1742910664859,0.4926919,87210.0,87209.0,0.0206]
[1742910665059,0.4926919,87210.0,87209.0,0.1352533]
[1742910665452,0.4926919,87210.0,87209.0,0.3391533]
[1742910665848,0.4926919,87210.0,87209.0,0.0206]
[1742910666052,0.4926919,87210.0,87209.0,0.02]
[1742910666253,0.00064,87210.0,87209.0,0.4954533]
[1742910666458,0.191,87223.0,87222.0,0.1146362]
[1742910666750,0.14356,87240.0,87222.0,0.6960362]
[1742910666951,0.00112,87240.0,87239.0,0.1146138]
[1742910667266,0.1156925,87240.0,87239.0,0.20064]
[1742910667470,0.1156925,87240.0,87239.0,0.2006]
[1742910667657,0.00108,87240.0,87239.0,0.4152138]
[1742910668160,0.1150125,87240.0,87239.0,0.3006]
[1742910668359,0.00112,87240.0,87239.0,0.4152138]
[1742910668757,0.1157325,87240.0,87239.0,0.4152138]
[1742910669161,0.1157325,87240.0,87239.0,0.3006]
[1742910669351,0.00112,87240.0,87239.0,0.3006]
[1742910669555,0.1187325,87240.0,87239.0,0.4152138]
[1742910669751,0.1197325,87240.0,87239.0,0.689]
[1742910669949,0.1146283,87228.0,87227.0,0.3608]
[1742910670155,0.1146283,87228.0,87227.0,0.6414]
[1742910670362,0.1154683,87228.0,87227.0,0.6414]
[1742910670652,0.1154683,87228.0,87227.0,0.2806]
[1742910671058,0.1164683,87228.0,87227.0,0.2806]
[1742910671253,0.1174683,87228.0,87227.0,0.2806]
[1742910671657,0.00284,87228.0,87227.0,0.2806]
[1742910671859,0.00284,87228.0,87227.0,0.3952296]
[1742910672163,0.00284,87228.0,87227.0,0.4816]
[1742910672164,0.1166283,87228.0,87227.0,0.4816]
[1742910672763,0.1156283,87228.0,87227.0,0.4816]
[1742910672961,0.002,87228.0,87227.0,0.4816]
[1742910673155,0.1150125,87240.0,87239.0,0.1146138]
[1742910673357,0.0573078,87238.0,87237.0,0.1146163]
[1742910673573,0.0004,87240.0,87239.0,0.1146138]
[1742910673767,0.12368758,87240.0,87239.0,0.22]
[1742910674067,0.1146165,87237.0,87236.0,0.2016]
[1742910674257,0.0004,87240.0,87236.0,0.4716]
[1742910674456,0.0004,87240.0,87239.0,0.1146138]
[1742910674767,0.0004,87240.0,87239.0,0.54617359]
[1742910674768,0.1150125,87240.0,87239.0,0.54617359]
[1742910675073,0.1150125,87240.0,87239.0,0.18155979]
[1742910675272,0.1150125,87240.0,87239.0,0.28155979]
[1742910675664,0.5007125,87240.0,87239.0,0.28155979]
[1742910676266,0.6422725,87240.0,87239.0,0.1]
[1742910676570,0.6452725,87240.0,87239.0,0.1]
[1742910677266,0.6461525,87240.0,87239.0,0.1]
[1742910677967,0.6461525,87240.0,87238.0,0.1146141]
[1742910677968,0.1146147,87239.0,87238.0,0.1146141]
[1742910678181,0.20388,87240.0,87239.0,0.1943]
[1742910678182,0.3176138,87240.0,87239.0,0.1943]
[1742910678365,0.3184138,87240.0,87239.0,0.3849]
[1742910678565,0.2038,87240.0,87239.0,0.4249]
[1742910678766,0.2038,87240.0,87239.0,0.5395138]
[1742910679074,0.2038,87240.0,87239.0,0.4395138]
[1742910679369,0.2038,87240.0,87239.0,0.7247138]
[1742910679568,0.23856183,87262.0,87251.0,0.1145981]
[1742910679868,0.23856183,87262.0,87255.0,0.1145928]
[1742910680074,0.23816184,87262.0,87261.0,0.4753849]
[1742910680266,0.27039683,87267.0,87266.0,0.1145784]
[1742910680461,0.27099684,87267.0,87266.0,0.4452184]
[1742910680663,0.27099684,87267.0,87266.0,1.8452184]
[1742910680866,0.27905066,87267.0,87266.0,1.8452184]